fUSD/lending_fUSD_20250115
["ID","MTS","AMOUNT","RATE_DAILY","PERIOD"]
[349025221,1736941857681,-167.767433,0.00020514,2]
[349025224,1736941857691,-163.831251,0.00020514,2]
[349025226,1736941857701,-500.0,0.00020514,2]
[349025227,1736941857710,-500.0,0.00020514,2]
[349025229,1736941857720,-505.78169699,0.00020514,2]
[349025231,1736941857729,-500.0,0.00020514,2]
[349025233,1736941857738,-945.23,0.00020514,2]
[349025235,1736941857747,-500.0,0.00020514,2]
[349025237,1736941857756,-500.0,0.00020514,2]
[349025239,1736941857766,-500.0,0.00020514,2]
[349025241,1736941857776,-500.0,0.00020514,2]
[349025243,1736941857785,-500.0,0.00020514,2]
[349025245,1736941857795,-500.0,0.00020514,2]
[349025247,1736941857806,-500.0,0.00020514,2]
[349025249,1736941857816,-500.0,0.00020514,2]
[349025251,1736941857825,-723.59,0.00020514,2]
[349025253,1736941857835,-500.0,0.00020514,2]
[349025255,1736941857845,-1436.33,0.00020514,2]
[349025257,1736941857855,-1203.26,0.00020514,2]
[349025260,1736941857865,-290.90825464,0.00020514,2]
[349025262,1736941857875,-500.0,0.00020514,2]
[349025264,1736941857887,-643.06,0.00020514,2]
[349025266,1736941857897,-740.16,0.00020514,2]
[349025268,1736941857907,-526.43659824,0.00020515,2]
[349025270,1736941857917,-500.0,0.00020515,2]
[349025272,1736941857927,-500.0,0.00020515,2]
[349025274,1736941857936,-500.0,0.00020515,2]
[349025276,1736941857946,-500.0,0.00020515,2]
[349025278,1736941857956,-500.0,0.00020515,2]
[349025279,1736941857965,-500.0,0.00020515,2]
[349025280,1736941857975,-500.0,0.00020515,2]
[349025281,1736941857986,-500.0,0.00020515,2]
[349025282,1736941857995,-500.0,0.00020515,2]
[349025283,1736941858005,-500.0,0.00020515,2]
[349025284,1736941858015,-500.0,0.00020515,2]
[349025285,1736941858024,-500.0,0.00020515,2]
[349025286,1736941858034,-500.0,0.00020515,2]
[349025287,1736941858044,-500.0,0.00020515,2]
[349025288,1736941858056,-468.81452913,0.00020515,2]
[349025289,1736941858066,-500.0,0.00020515,2]
[349025290,1736941858076,-500.0,0.00020515,2]
[349025291,1736941858086,-500.0,0.00020515,2]
[349025292,1736941858096,-500.0,0.00020515,2]
[349025293,1736941858106,-500.0,0.00020515,2]
[349025294,1736941858116,-500.0,0.00020515,2]
[349025295,1736941858130,-500.0,0.00020515,2]
[349025296,1736941858140,-500.0,0.00020515,2]
[349025297,1736941858149,-500.0,0.00020515,2]
[349025298,1736941858159,-319.06028616,0.00020515,2]
[349025299,1736941858169,-500.0,0.00020515,2]
[349025300,1736941858179,-500.0,0.00020515,2]
[349025301,1736941858188,-508.21259064,0.00020515,2]
[349025302,1736941858199,-162.89840307,0.00020515,2]
[349025303,1736941858209,-500.0,0.00020515,2]
[349025304,1736941858219,-500.0,0.00020515,2]
[349025305,1736941858229,-500.0,0.00020515,2]
[349025306,1736941858239,-302.95780093,0.00020515,2]
[349025307,1736941858249,-500.0,0.00020515,2]
[349025308,1736941858259,-500.0,0.00020515,2]
[349025309,1736941858269,-500.0,0.00020515,2]
[349025310,1736941858279,-500.0,0.00020515,2]
[349025311,1736941858289,-500.0,0.00020515,2]
[349025312,1736941858299,-210.79,0.00020515,2]
[349025313,1736941858310,-346.79596824,0.00020515,2]
[349025314,1736941858320,-641.45302227,0.00020515,2]
[349025315,1736941858329,-500.0,0.00020515,2]
[349025316,1736941858339,-500.0,0.00020515,2]
[349025317,1736941858349,-500.0,0.00020515,2]
[349025318,1736941858358,-186.12,0.00020515,2]
[349025319,1736941858368,-500.0,0.00020515,2]
[349025320,1736941858379,-500.0,0.00020515,2]
[349025321,1736941858391,-500.0,0.00020515,2]
[349025322,1736941858402,-500.0,0.00020515,2]
[349025323,1736941858412,-183.81,0.00020515,2]
[349025324,1736941858423,-500.0,0.00020515,2]
[349025325,1736941858433,-500.0,0.00020515,2]
[349025326,1736941858443,-170.62,0.00020515,2]
[349025327,1736941858453,-500.0,0.00020515,2]
[349025328,1736941858462,-500.0,0.00020515,2]
[349025329,1736941858472,-500.0,0.00020515,2]
[349025330,1736941858482,-500.0,0.00020515,2]
[349025331,1736941858492,-388.06,0.00020515,2]
[349025332,1736941858503,-500.0,0.00020515,2]
[349025333,1736941858513,-500.0,0.00020515,2]
[349025334,1736941858523,-500.0,0.00020515,2]
[349025335,1736941858533,-500.0,0.00020515,2]
[349025336,1736941858543,-500.0,0.00020515,2]
[349025337,1736941858553,-500.0,0.00020515,2]
[349025338,1736941858563,-500.0,0.00020515,2]
[349025339,1736941858573,-385.45476673,0.00020515,2]
[349025340,1736941858583,-312.5,0.00020515,2]
[349025341,1736941858593,-500.0,0.00020515,2]
[349025342,1736941858602,-500.0,0.00020515,2]
[349025343,1736941858612,-500.0,0.00020515,2]
[349025344,1736941858623,-500.0,0.00020515,2]
[349025345,1736941858633,-517.72969797,0.00020515,2]
[349025346,1736941858643,-500.0,0.00020515,2]
[349025347,1736941858653,-500.0,0.00020515,2]
[349025348,1736941858663,-500.0,0.00020515,2]
[349025349,1736941858673,-500.0,0.00020515,2]
[349025350,1736941858683,-500.0,0.00020515,2]
[349025351,1736941858693,-500.0,0.00020515,2]
[349025352,1736941858703,-500.0,0.00020515,2]
[349025353,1736941858713,-500.0,0.00020515,2]
[349025354,1736941858723,-500.0,0.00020515,2]
[349025355,1736941858733,-500.0,0.00020515,2]
[349025356,1736941858743,-359.78667589,0.00020515,2]
[349025357,1736941858753,-500.0,0.00020515,2]
[349025358,1736941858764,-500.0,0.00020515,2]
[349025359,1736941858774,-500.0,0.00020515,2]
[349025360,1736941858784,-552.75,0.00020515,2]
[349025361,1736941858795,-500.0,0.00020515,2]
[349025362,1736941858804,-406.54771696,0.00020515,2]
[349025363,1736941858815,-500.0,0.00020515,2]
[349025364,1736941858825,-500.0,0.00020515,2]
[349025365,1736941858835,-500.0,0.00020515,2]
[349025366,1736941858846,-500.0,0.00020515,2]
[349025367,1736941858856,-500.0,0.00020515,2]
[349025368,1736941858866,-423.58499604,0.00020515,2]
[349025369,1736941858876,-500.0,0.00020515,2]
[349025370,1736941858887,-500.0,0.00020515,2]
[349025371,1736941858898,-508.67223874,0.00020515,2]
[349025372,1736941858908,-500.0,0.00020515,2]
[349025373,1736941858918,-583.09,0.00020515,2]
[349025374,1736941858928,-500.0,0.00020515,2]
[349025375,1736941858939,-315.52310427,0.00020515,2]
[349025376,1736941858949,-500.0,0.00020515,2]
[349025377,1736941858959,-500.0,0.00020515,2]
[349025378,1736941858969,-500.0,0.00020515,2]
[349025379,1736941858980,-500.0,0.00020515,2]
[349025380,1736941858990,-500.0,0.00020515,2]
[349025381,1736941859000,-500.0,0.00020515,2]
[349025382,1736941859011,-628.84,0.00020515,2]
[349025383,1736941859021,-308.33,0.00020515,2]
[349025384,1736941859031,-177.29,0.00020548,2]
[349025385,1736941859041,-373.3993889,0.00020576,2]
[349025386,1736941859051,-283.95,0.00020617,2]
[349025387,1736941859062,-40762.43171931,0.00020661,14]
[349025388,1736941859071,-500.0,0.00020662,2]
[349025389,1736941859081,-240.26666164,0.00020662,2]
[349025390,1736941859091,-500.0,0.00020662,2]
[349025391,1736941859101,-500.0,0.00020662,2]
[349025392,1736941859111,-500.0,0.00020662,2]
[349025393,1736941859123,-500.0,0.00020662,2]
[349025394,1736941859133,-500.0,0.00020662,2]
[349025395,1736941859144,-500.0,0.00020662,2]
[349025396,1736941859154,-515.15378184,0.00020662,2]
[349025397,1736941859166,-645.06,0.00020662,2]
[349025398,1736941859176,-500.0,0.00020662,2]
[349025399,1736941859186,-500.0,0.00020662,2]
[349025400,1736941859197,-500.0,0.00020662,2]
[349025401,1736941859207,-500.0,0.00020662,2]
[349025402,1736941859217,-500.0,0.00020662,2]
[349025403,1736941859228,-500.0,0.00020662,2]
[349025404,1736941859239,-500.0,0.00020662,2]
[349025405,1736941859249,-546.28508712,0.00020689,2]
[349025406,1736941859259,-500.0,0.00020689,2]
[349025407,1736941859270,-558.27,0.00020689,2]
[349025408,1736941859280,-500.0,0.00020689,2]
[349025409,1736941859291,-500.0,0.00020689,2]
[349025410,1736941859301,-500.0,0.00020689,2]
[349025411,1736941859312,-458.43,0.00020689,2]
[349025412,1736941859322,-150.0,0.00020692,2]
[349025413,1736941859333,-1633.40342782,0.00020693,2]
[349025414,1736941859343,-2000.0,0.00020758,2]
[349025415,1736941859353,-193.18,0.00020788,2]
[349025416,1736941859363,-500.0,0.00020788,2]
[349025417,1736941859373,-500.0,0.00020788,2]
[349025418,1736941859383,-500.0,0.00020788,2]
[349025419,1736941859394,-470.42309206,0.00020788,2]
[349025420,1736941859404,-500.0,0.00020788,2]
[349025421,1736941859413,-500.0,0.00020788,2]
[349025422,1736941859423,-500.0,0.00020788,2]
[349025423,1736941859434,-865.22,0.00020788,2]
[349025424,1736941859560,-500.0,0.00020788,2]
[349025425,1736941859584,-500.0,0.00020788,2]
[349025426,1736941859594,-1046.21,0.00020788,2]
[349025427,1736941859603,-154.806351,0.00020788,2]
[349025428,1736941859612,-155.294633,0.00020788,2]
[349025429,1736941859621,-500.0,0.00020788,2]
[349025430,1736941859631,-500.0,0.00020788,2]
[349025431,1736941859640,-500.0,0.00020788,2]
[349025432,1736941859650,-500.0,0.00020788,2]
[349025433,1736941859660,-945.23,0.00020788,2]
[349025434,1736941859670,-500.0,0.00020788,2]
[349025435,1736941859680,-500.0,0.00020788,2]
[349025436,1736941859689,-500.0,0.00020788,2]
[349025437,1736941859700,-500.0,0.00020788,2]
[349025438,1736941859710,-500.0,0.00020788,2]
[349025439,1736941859721,-500.0,0.00020788,2]
[349025440,1736941859731,-500.0,0.00020788,2]
[349025441,1736941859741,-500.0,0.00020788,2]
[349025442,1736941859751,-723.59,0.00020788,2]
[349025443,1736941859761,-500.0,0.00020788,2]
[349025444,1736941859771,-1436.33,0.00020788,2]
[349025445,1736941859781,-1203.26,0.00020788,2]
[349025446,1736941859791,-500.0,0.00020788,2]
[349025447,1736941859801,-643.06,0.00020788,2]
[349025448,1736941859812,-740.16,0.00020788,2]
[349025449,1736941859821,-562.23925389,0.00020789,2]
[349025450,1736941859831,-552.09,0.00020789,2]
[349025451,1736941859840,-500.0,0.00020789,2]
[349025452,1736941859849,-500.0,0.00020789,2]
[349025453,1736941859859,-264.75067526,0.00020789,2]
[349025454,1736941859869,-500.0,0.00020789,2]
[349025455,1736941859879,-500.0,0.00020789,2]
[349025456,1736941859889,-500.0,0.00020789,2]
[349025457,1736941859900,-500.0,0.00020789,2]
[349025458,1736941859910,-500.0,0.00020789,2]
[349025459,1736941859920,-500.0,0.00020789,2]
[349025460,1736941859930,-500.0,0.00020789,2]
[349025461,1736941859940,-500.0,0.00020789,2]
[349025462,1736941859950,-500.0,0.00020789,2]
[349025463,1736941859959,-500.0,0.00020789,2]
[349025464,1736941859970,-187.8562427,0.00020789,2]
[349025465,1736941859980,-518.11,0.00020789,2]
[349025466,1736941859990,-193.85,0.00020789,2]
[349025467,1736941860000,-610.13,0.00020789,2]
[349025468,1736941860010,-500.0,0.00020789,2]
[349025469,1736941860021,-500.0,0.00020789,2]
[349025470,1736941860031,-500.0,0.00020789,2]
[349025471,1736941860041,-500.0,0.00020789,2]
[349025472,1736941860050,-500.0,0.00020789,2]
[349025473,1736941860062,-500.0,0.00020789,2]
[349025474,1736941860072,-500.0,0.00020789,2]
[349025475,1736941860082,-500.0,0.00020789,2]
[349025476,1736941860092,-500.0,0.00020789,2]
[349025477,1736941860102,-468.29,0.00020789,2]
[349025478,1736941860112,-197.45,0.00020789,2]
[349025479,1736941860126,-522.12,0.00020789,2]
[349025480,1736941860136,-500.0,0.00020789,2]
[349025481,1736941860146,-193.87,0.00020789,2]
[349025482,1736941860156,-315.92,0.00020789,2]
[349025483,1736941860167,-500.0,0.00020789,2]
[349025484,1736941860177,-627.15,0.00020789,2]
[349025485,1736941860187,-500.0,0.00020789,2]
[349025486,1736941860197,-500.0,0.00020789,2]
[349025487,1736941860209,-211.44689573,0.00020789,2]
[349025488,1736941860219,-500.0,0.00020789,2]
[349025489,1736941860230,-500.0,0.00020789,2]
[349025490,1736941860240,-500.0,0.00020789,2]
[349025491,1736941860250,-590.28,0.00020789,2]
[349025492,1736941860259,-500.0,0.00020789,2]
[349025493,1736941860270,-500.0,0.00020789,2]
[349025494,1736941860280,-500.0,0.00020789,2]
[349025495,1736941860290,-500.0,0.00020789,2]
[349025496,1736941860300,-500.0,0.00020789,2]
[349025497,1736941860313,-500.0,0.00020789,2]
[349025498,1736941860323,-359.25434087,0.00020789,2]
[349025499,1736941860333,-500.0,0.00020789,2]
[349025500,1736941860343,-500.0,0.00020789,2]
[349025501,1736941860354,-500.0,0.00020789,2]
[349025502,1736941860364,-477.31495401,0.00020789,2]
[349025503,1736941860374,-500.0,0.00020789,2]
[349025504,1736941860383,-500.0,0.00020789,2]
[349025505,1736941860393,-500.0,0.00020789,2]
[349025506,1736941860403,-2765.65897392,0.0002079,2]
[349025507,1736941860412,-179.99984874,0.00020792,2]
[349025508,1736941860423,-4000.0,0.000208,7]
[349025509,1736941860433,-507.18,0.00020899,2]
[349025510,1736941860443,-220.0,0.000209,2]
[349025511,1736941860452,-593.69,0.000209,31]
[349025512,1736941860462,-593.69,0.000209,31]
[349025513,1736941860472,-593.69,0.000209,31]
[349025514,1736941860481,-593.69,0.000209,31]
[349025515,1736941860491,-593.69,0.000209,31]
[349025516,1736941860502,-593.69,0.000209,31]
[349025517,1736941860511,-593.69,0.000209,31]
[349025518,1736941860521,-593.69,0.000209,31]
[349025519,1736941860531,-593.69,0.000209,31]
[349025520,1736941860542,-593.69,0.000209,31]
[349025521,1736941860551,-593.69,0.000209,31]
[349025522,1736941860565,-593.69,0.000209,31]
[349025523,1736941860574,-593.69,0.000209,31]
[349025524,1736941860584,-593.69,0.000209,31]
[349025525,1736941860594,-593.69,0.000209,31]
[349025526,1736941860604,-593.69,0.000209,31]
[349025527,1736941860613,-5400.0,0.000209,7]
[349025528,1736941860623,-584.37,0.00020936,2]
[349025529,1736941860632,-500.0,0.00020936,2]
[349025530,1736941860644,-500.0,0.00020936,2]
[349025531,1736941860654,-353.85625,0.00020936,2]
[349025532,1736941860666,-500.0,0.00020936,2]
[349025533,1736941860676,-500.0,0.00020936,2]
[349025534,1736941860686,-359.96,0.00020936,2]
[349025535,1736941860696,-195.68,0.00020936,2]
[349025536,1736941860706,-500.0,0.00020936,2]
[349025537,1736941860716,-500.0,0.00020963,2]
[349025538,1736941860726,-500.0,0.00020963,2]
[349025539,1736941860736,-623.6449098,0.00020963,2]
[349025540,1736941860745,-500.0,0.00020963,2]
[349025541,1736941860755,-700.0,0.0002097,2]
[349025542,1736941860767,-605.14618481,0.00020973,2]
[349025543,1736941860776,-9794.0,0.00020986,2]
[349025544,1736941860786,-600.00778316,0.00020999,2]
[349025545,1736941860795,-504.58658975,0.00020999,2]
[349025546,1736941860807,-2000.0,0.00020999,2]
[349025547,1736941860817,-200.0,0.00020999,2]
[349025548,1736941860826,-2000.0,0.00020999,2]
[349025549,1736941860836,-200.0,0.00020999,2]
[349025550,1736941860846,-2000.0,0.00020999,2]
[349025551,1736941860855,-200.0,0.00020999,2]
[349025552,1736941860866,-500.0,0.00020999,2]
[349025553,1736941860875,-500.0,0.00020999,2]
[349025554,1736941860887,-500.0,0.00020999,2]
[349025555,1736941860897,-500.0,0.00020999,2]
[349025556,1736941860907,-507.18,0.00020999,2]
[349025557,1736941860917,-507.18,0.00020999,2]
[349025558,1736941860927,-500.0,0.00020999,2]
[349025559,1736941860936,-507.18,0.00020999,2]
[349025560,1736941860947,-507.18,0.00020999,2]
[349025561,1736941860957,-200.0,0.00020999,2]
[349025562,1736941860967,-999.0,0.00020999,2]
[349025563,1736941860976,-3000.0,0.00020999,2]
[349025564,1736941860987,-500.0,0.00020999,2]
[349025565,1736941860997,-500.0,0.00020999,2]
[349025566,1736941861007,-500.0,0.00020999,2]
[349025567,1736941861017,-500.0,0.00020999,2]
[349025568,1736941861026,-1000.0,0.00021,15]
[349025569,1736941861036,-796417.0,0.00021,2]
[349025570,1736941861047,-158919.0,0.00021,2]
[349025571,1736941861060,-800.0,0.00021,2]
[349025572,1736941861070,-2110.0,0.00021,2]
[349025573,1736941861080,-609.98,0.00021041,2]
[349025574,1736941861089,-500.0,0.00021062,2]
[349025575,1736941861099,-590.29,0.00021062,2]
[349025576,1736941861108,-500.0,0.00021062,2]
[349025577,1736941861119,-500.0,0.00021062,2]
[349025578,1736941861130,-500.0,0.00021062,2]
[349025579,1736941861139,-500.0,0.00021062,2]
[349025580,1736941861148,-865.22,0.00021062,2]
[349025581,1736941861158,-500.0,0.00021062,2]
[349025582,1736941861167,-500.0,0.00021062,2]
[349025583,1736941861176,-1046.21,0.00021062,2]
[349025584,1736941861186,-154.806351,0.00021062,2]
[349025585,1736941861196,-500.0,0.00021062,2]
[349025586,1736941861206,-500.0,0.00021062,2]
[349025587,1736941861216,-500.0,0.00021062,2]
[349025588,1736941861225,-945.23,0.00021062,2]
[349025589,1736941861234,-500.0,0.00021062,2]
[349025590,1736941861244,-500.0,0.00021062,2]
[349025591,1736941861254,-500.0,0.00021062,2]
[349025592,1736941861264,-500.0,0.00021062,2]
[349025593,1736941861274,-500.0,0.00021062,2]
[349025594,1736941861284,-500.0,0.00021062,2]
[349025595,1736941861295,-500.0,0.00021062,2]
[349025596,1736941861306,-723.59,0.00021062,2]
[349025597,1736941861318,-500.0,0.00021062,2]
[349025598,1736941861328,-1436.33,0.00021062,2]
[349025599,1736941861338,-1203.26,0.00021062,2]
[349025600,1736941861349,-500.0,0.00021062,2]
[349025601,1736941861359,-643.06,0.00021062,2]
[349025602,1736941861370,-740.16,0.00021062,2]
[349025603,1736941861379,-475.86,0.00021063,2]
[349025604,1736941861389,-159.8,0.00021063,2]
[349025605,1736941861400,-351.62,0.00021063,2]
[349025606,1736941861410,-212.07,0.00021063,2]
[349025607,1736941861421,-500.0,0.00021063,2]
[349025608,1736941861431,-500.0,0.00021063,2]
[349025609,1736941861440,-500.0,0.00021063,2]
[349025610,1736941861451,-500.0,0.00021063,2]
[349025611,1736941861460,-195.45,0.00021063,2]
[349025612,1736941861470,-452.84,0.00021063,2]
[349025613,1736941861480,-416.43,0.00021063,2]
[349025614,1736941861489,-535.5,0.00021063,2]
[349025615,1736941861500,-163.15969576,0.00021063,2]
[349025616,1736941861509,-493.42,0.00021063,2]
[349025617,1736941861519,-503.9,0.00021063,2]
[349025618,1736941861529,-304.64,0.00021063,2]
[349025619,1736941861539,-185.64,0.00021063,2]
[349025620,1736941861549,-156.57,0.00021063,2]
[349025621,1736941861560,-577.46,0.00021063,2]
[349025622,1736941861570,-500.0,0.00021063,2]
[349025623,1736941861580,-500.0,0.00021063,2]
[349025624,1736941861590,-500.0,0.00021063,2]
[349025625,1736941861600,-500.0,0.00021063,2]
[349025626,1736941861610,-500.0,0.00021063,2]
[349025627,1736941861622,-554.36,0.00021063,2]
[349025628,1736941861634,-500.0,0.00021063,2]
[349025629,1736941861645,-500.0,0.00021063,2]
[349025630,1736941861656,-500.0,0.00021063,2]
[349025631,1736941861666,-500.0,0.00021063,2]
[349025632,1736941861676,-500.0,0.00021063,2]
[349025633,1736941861686,-3000.0,0.000211,2]
[349025634,1736941861696,-1000.0,0.000211,2]
[349025635,1736941861706,-231.0,0.000211,2]
[349025636,1736941861716,-730.0,0.000211,2]
[349025637,1736941861726,-1000.0,0.0002115,15]
[349025638,1736941861735,-179.99984874,0.00021161,2]
[349025639,1736941861744,-1142.75564318,0.00021178,2]
[349025640,1736941861754,-150.0,0.00021197,2]
[349025641,1736941861764,-2000.0,0.00021209,2]
[349025642,1736941861774,-200.0,0.00021209,2]
[349025643,1736941861783,-2000.0,0.00021209,2]
[349025644,1736941861792,-200.0,0.00021209,2]
[349025645,1736941861802,-2000.0,0.00021209,2]
[349025646,1736941861813,-200.0,0.00021209,2]
[349025647,1736941861822,-200.0,0.00021209,2]
[349025648,1736941861832,-500.0,0.0002121,2]
[349025649,1736941861841,-192.22,0.0002121,2]
[349025650,1736941861851,-500.0,0.0002121,2]
[349025651,1736941861860,-186.88429938,0.0002121,2]
[349025652,1736941861870,-500.0,0.0002121,2]
[349025653,1736941861881,-500.0,0.00021237,2]
[349025654,1736941861891,-500.0,0.00021237,2]
[349025655,1736941861901,-500.0,0.00021237,2]
[349025656,1736941861911,-1000.0,0.0002125,20]
[349025657,1736941861921,-500.0,0.00021273,2]
[349025658,1736941861932,-500.0,0.00021273,2]
[349025659,1736941861941,-500.0,0.00021273,2]
[349025660,1736941861951,-500.0,0.00021273,2]
[349025661,1736941861961,-500.0,0.00021273,2]
[349025662,1736941861971,-500.0,0.00021273,2]
[349025663,1736941861980,-500.0,0.00021273,2]
[349025664,1736941861990,-500.0,0.00021273,2]
[349025665,1736941862000,-500.0,0.00021273,2]
[349025666,1736941862009,-500.0,0.00021336,2]
[349025667,1736941862019,-500.0,0.00021336,2]
[349025668,1736941862028,-500.0,0.00021336,2]
[349025669,1736941862038,-500.0,0.00021336,2]
[349025670,1736941862048,-500.0,0.00021336,2]
[349025671,1736941862058,-865.22,0.00021336,2]
[349025672,1736941862067,-500.0,0.00021336,2]
[349025673,1736941862077,-500.0,0.00021336,2]
[349025674,1736941862087,-1046.21,0.00021336,2]
[349025675,1736941862096,-154.806351,0.00021336,2]
[349025676,1736941862106,-155.294633,0.00021336,2]
[349025677,1736941862116,-500.0,0.00021336,2]
[349025678,1736941862127,-500.0,0.00021336,2]
[349025679,1736941862136,-500.0,0.00021336,2]
[349025680,1736941862146,-945.23,0.00021336,2]
[349025681,1736941862156,-500.0,0.00021336,2]
[349025682,1736941862167,-500.0,0.00021336,2]
[349025683,1736941862176,-500.0,0.00021336,2]
[349025684,1736941862186,-500.0,0.00021336,2]
[349025685,1736941862195,-500.0,0.00021336,2]
[349025686,1736941862207,-500.0,0.00021336,2]
[349025687,1736941862218,-723.59,0.00021336,2]
[349025688,1736941862228,-500.0,0.00021336,2]
[349025689,1736941862238,-1436.33,0.00021336,2]
[349025690,1736941862249,-1203.26,0.00021336,2]
[349025691,1736941862259,-643.06,0.00021336,2]
[349025692,1736941862269,-740.16,0.00021336,2]
[349025693,1736941862279,-500.0,0.00021337,2]
[349025694,1736941862288,-156.60297662,0.00021337,2]
[349025695,1736941862299,-194.39,0.00021337,2]
[349025696,1736941862309,-500.0,0.00021337,2]
[349025697,1736941862318,-500.0,0.00021337,2]
[349025698,1736941862328,-500.0,0.00021337,2]
[349025699,1736941862338,-237.26,0.00021337,2]
[349025700,1736941862348,-500.0,0.00021337,2]
[349025701,1736941862357,-250.27,0.00021337,2]
[349025702,1736941862367,-500.0,0.00021337,2]
[349025703,1736941862377,-500.0,0.00021337,2]
[349025704,1736941862388,-240.09,0.00021337,2]
[349025705,1736941862398,-500.0,0.00021337,2]
[349025706,1736941862409,-173.51,0.00021342,2]
[349025707,1736941862418,-1000.0,0.0002135,20]
[349025708,1736941862428,-1633.40342782,0.00021417,2]
[349025709,1736941862438,-1910.0,0.00021418,2]
[349025710,1736941862448,-2000.0,0.00021421,2]
[349025711,1736941862458,-200.0,0.00021421,2]
[349025712,1736941862468,-200.0,0.00021421,2]
[349025713,1736941862479,-2000.0,0.00021421,2]
[349025714,1736941862489,-200.0,0.00021421,2]
[349025715,1736941862499,-200.0,0.00021421,2]
[349025716,1736941862509,-1000.0,0.0002145,30]
[349025717,1736941862518,-500.0,0.0002146,2]
[349025718,1736941862527,-500.0,0.00021484,2]
[349025719,1736941862537,-321.66,0.00021484,2]
[349025720,1736941862547,-1000.0,0.000215,30]
[349025721,1736941862557,-2110.0,0.000215,2]
[349025722,1736941862567,-500.0,0.00021511,2]
[349025723,1736941862577,-500.0,0.00021511,2]
[349025724,1736941862586,-500.0,0.00021511,2]
[349025725,1736941862596,-179.99984874,0.0002153,2]
[349025726,1736941862606,-1008.0,0.00021533,2]
[349025727,1736941862615,-639.26,0.00021547,2]
[349025728,1736941862625,-500.0,0.00021547,2]
[349025729,1736941862635,-500.0,0.00021547,2]
[349025730,1736941862645,-500.0,0.00021547,2]
[349025731,1736941862654,-500.0,0.00021547,2]
[349025732,1736941862664,-500.0,0.00021547,2]
[349025733,1736941862673,-500.0,0.00021547,2]
[349025734,1736941862683,-500.0,0.00021547,2]
[349025735,1736941862693,-500.0,0.00021547,2]
[349025736,1736941862703,-295.2812015,0.0002156,2]
[349025737,1736941862712,-457.02,0.0002161,2]
[349025738,1736941862722,-500.0,0.0002161,2]
[349025739,1736941862731,-500.0,0.0002161,2]
[349025740,1736941862741,-500.0,0.0002161,2]
[349025741,1736941862750,-500.0,0.0002161,2]
[349025742,1736941862759,-865.22,0.0002161,2]
[349025743,1736941862769,-500.0,0.0002161,2]
[349025744,1736941862779,-500.0,0.0002161,2]
[349025745,1736941862788,-1046.21,0.0002161,2]
[349025746,1736941862797,-155.294633,0.0002161,2]
[349025747,1736941862806,-500.0,0.0002161,2]
[349025748,1736941862816,-500.0,0.0002161,2]
[349025749,1736941862826,-500.0,0.0002161,2]